fUSD/lending_fUSD_20260103
["ID","MTS","AMOUNT","RATE_DAILY","PERIOD"]
[400374833,1767453995379,500.0,0.00017999,2]
[400374834,1767453995413,500.0,0.00017999,2]
[400374835,1767453995451,379.65489828,0.00017999,2]
[400374836,1767453995483,500.0,0.00017999,2]
[400374837,1767453995518,500.0,0.00017999,2]
[400374838,1767453995551,500.0,0.00017999,2]
[400374839,1767453995588,500.0,0.00017999,2]
[400374840,1767453995621,500.0,0.00017999,2]
[400374841,1767453995654,500.0,0.00017999,2]
[400374842,1767453995686,500.0,0.00017999,2]
[400374843,1767453995730,500.0,0.00017999,2]
[400374844,1767453995769,500.0,0.00017999,2]
[400374845,1767453995802,500.0,0.00017999,2]
[400374846,1767453995835,500.0,0.00017999,2]
[400374847,1767453995869,500.0,0.00017999,2]
[400374848,1767453995906,500.0,0.00017999,2]
[400374849,1767453995940,500.0,0.00017999,2]
[400374850,1767453995973,500.0,0.00017999,2]
[400374851,1767453996010,500.0,0.00017999,2]
[400374852,1767453996043,500.0,0.00017999,2]
[400374853,1767453996074,500.0,0.00017999,2]
[400374854,1767453996106,500.0,0.00017999,2]
[400374855,1767453996142,500.0,0.00017999,2]
[400374856,1767453996174,500.0,0.00017999,2]
[400374857,1767453996414,500.0,0.00017999,2]
[400374858,1767453996451,500.0,0.00017999,2]
[400374859,1767453996491,500.0,0.00017999,2]
[400374860,1767453996531,500.0,0.00017999,2]
[400374861,1767453996622,321.12593063,0.00017999,2]
[400374865,1767454011915,500.0,0.00017999,2]
[400374866,1767454011948,500.0,0.00017999,2]
[400374867,1767454011980,500.0,0.00017999,2]
[400374868,1767454012012,500.0,0.00017999,2]
[400374869,1767454012044,500.0,0.00017999,2]
[400374870,1767454012075,500.0,0.00017999,2]
[400374871,1767454012114,600.0,0.00017999,2]
[400374872,1767454012146,500.0,0.00017999,2]
[400374873,1767454012177,500.0,0.00017999,2]
[400374874,1767454012212,500.0,0.00017999,2]
[400374875,1767454012243,500.0,0.00017999,2]
[400374876,1767454012274,500.0,0.00017999,2]
[400374877,1767454012316,500.0,0.00017999,2]
[400374878,1767454012347,500.0,0.00017999,2]
[400374879,1767454012383,264.23232562,0.00017999,2]
[400374880,1767454012419,235.76767438,0.00017999,2]
[400374881,1767454012458,500.0,0.00017999,2]
[400374882,1767454013595,5000.00643706,0.000162,5]
[400374883,1767454021597,300.0,0.00017999,2]
[400374884,1767454024278,233.0,0.00017999,2]
[400374885,1767454025012,1206.83325859,0.00015,2]
[400374886,1767454034099,-589.89363207,0.00018,2]
[400374888,1767454072786,501.86313919,0.00014,2]
[400374894,1767454118569,11037.43557749,0.00016,4]
[400374902,1767454141433,300.0,0.00017999,2]
[400374904,1767454146115,-5554.60057086,0.00018,2]
[400374905,1767454147136,-55156.26472521,0.00018,2]
[400374906,1767454153265,-6373.909612,0.00018,2]
[400374907,1767454154901,239.17,0.00013699,2]
[400374909,1767454167098,-36484.81298,0.00018,2]
[400374910,1767454170120,-5352.453064,0.00018,2]
[400374914,1767454201288,164.0,0.00017999,2]
[400374931,1767454232042,-15499.27084786,0.00018,2]
[400374932,1767454232057,-1295.49444711,0.00018,2]
[400375095,1767454233961,-353.40798888,0.00018,2]
[400375096,1767454234037,-271.26466689,0.00018,2]
[400375097,1767454234142,-662.20471315,0.00018,2]
[400375123,1767454238972,-217986.05567953,0.00018,2]
[400375124,1767454238985,-8691.74184831,0.00018,2]
[400375125,1767454238999,-583256.30426356,0.00018,2]
[400375126,1767454239011,-304.0,0.00018,2]
[400375127,1767454239024,-445.80595613,0.00019539,2]
[400375128,1767454239035,-239.17,0.00020187,2]
[400375129,1767454239047,-151.0,0.00023598,2]
[400375130,1767454239060,-151.0,0.00023598,2]
[400375131,1767454239071,-1645.29677757,0.00023961,2]
[400375132,1767454239083,-1645.29677749,0.00026076,2]
[400375133,1767454239094,-239.17,0.00026676,2]
[400375134,1767454239106,-445.80595611,0.00027599,2]
[400375135,1767454239118,-1645.29677749,0.00028192,2]
[400375136,1767454239129,-941.35,0.0003,5]
[400375137,1767454239141,-1645.29677749,0.00030307,2]
[400375138,1767454239153,-6434.55,0.00032232,2]
[400375139,1767454239164,-1645.29677749,0.00032423,2]
[400375140,1767454239176,-166.66,0.0003271,30]
[400375141,1767454239188,-300.0,0.00032864,2]
[400375142,1767454239200,-33195.97591663,0.00033,13]
[400375143,1767454239212,-239.17,0.00033165,2]
[400375144,1767454239225,-166.66,0.00033399,30]
[400375145,1767454239237,-166.66,0.00034088,30]
[400375146,1767454239253,-1645.29677749,0.00034538,2]
[400375147,1767454239265,-303.91,0.00034572,3]
[400375148,1767454239276,-23329.74,0.00034587,2]
[400375149,1767454239287,-150.0,0.00034662,2]
[400375150,1767454239300,-166.66,0.00034776,30]
[400375151,1767454239312,-2000.0,0.00035,25]
[400375152,1767454239323,-393.99875038,0.00035035,2]
[400375153,1767454239335,-309.51,0.00035035,2]
[400375154,1767454239348,-200.0,0.00035115,2]
[400375155,1767454239360,-1411.2,0.00035115,2]
[400375156,1767454239371,-166.66,0.00035465,30]
[400375157,1767454239383,-1423.3809576,0.00035506,2]
[400375158,1767454239400,-1000000.0,0.00035516,2]
[400375159,1767454239412,-10463.15897308,0.00035615,2]
[400375160,1767454239423,-2500.0,0.00035616,2]
[400375161,1767454239444,-204.4493587,0.00035659,23]
[400375162,1767454239459,-445.80595611,0.00035659,9]
[400375163,1767454239472,-151.0,0.00035695,2]
[400375164,1767454239483,-151.0,0.00035695,2]
[400375165,1767454239495,-151.0,0.00035695,2]
[400375166,1767454239507,-151.0,0.00035695,2]
[400375167,1767454239519,-151.0,0.00035695,2]
[400375168,1767454239530,-151.0,0.00035695,2]
[400375169,1767454239541,-151.0,0.00035695,2]
[400375170,1767454239554,-198.33115528,0.00035695,2]
[400375171,1767454239565,-55471.0,0.00035699,120]
[400375172,1767454239576,-151.0,0.00035712,14]
[400375173,1767454239588,-151.0,0.00035713,14]
[400375174,1767454239599,-500.0,0.00035715,120]
[400375175,1767454239610,-249.49037326,0.00035715,120]
[400375176,1767454239624,-500.0,0.00035715,120]
[400375177,1767454239635,-500.0,0.00035715,120]
[400375178,1767454239647,-532.91738073,0.00035715,120]
[400375179,1767454239658,-500.0,0.00035715,120]
[400375180,1767454239669,-528.7999241,0.00035715,120]
[400375181,1767454239680,-278.93,0.00035715,14]
[400375182,1767454239691,-500.0,0.00035715,2]
[400375183,1767454239702,-500.0,0.00035715,2]
[400375184,1767454239712,-500.0,0.00035715,2]
[400375185,1767454239723,-293.04364242,0.00035715,2]
[400375186,1767454239734,-500.0,0.00035715,120]
[400375187,1767454239745,-500.0,0.00035715,120]
[400375188,1767454239767,-500.0,0.00035715,120]
[400375189,1767454239787,-500.0,0.00035715,120]
[400375190,1767454239798,-1820.41,0.00035715,43]
[400375191,1767454239809,-581.96610781,0.00035715,120]
[400375192,1767454239820,-500.0,0.00035715,30]
[400375193,1767454239833,-500.0,0.00035715,30]
[400375194,1767454239845,-500.0,0.00035715,30]
[400375195,1767454239856,-500.0,0.00035715,120]
[400375196,1767454239867,-500.0,0.00035715,120]
[400375197,1767454239878,-500.0,0.00035715,120]
[400375198,1767454239889,-500.0,0.00035715,120]
[400375199,1767454239901,-500.0,0.00035715,120]
[400375200,1767454239911,-500.0,0.00035715,120]
[400375201,1767454239922,-500.0,0.00035715,120]
[400375202,1767454239933,-500.0,0.00035715,120]
[400375203,1767454239944,-500.0,0.00035715,120]
[400375204,1767454239955,-500.0,0.00035715,120]
[400375206,1767454239965,-500.0,0.00035715,120]
[400375208,1767454239976,-500.0,0.00035715,120]
[400375210,1767454239988,-500.0,0.00035715,120]
[400375211,1767454240355,-500.0,0.00035715,120]
[400375213,1767454240442,-500.0,0.00035715,120]
[400375214,1767454240477,-500.0,0.00035715,120]
[400375215,1767454240487,-300.0,0.00035715,10]
[400375216,1767454240497,-790.55236792,0.00035715,30]
[400375217,1767454240507,-112145.19268129,0.00035715,20]
[400375218,1767454240517,-151.000003,0.00035716,31]
[400375219,1767454240527,-151.0,0.00035716,31]
[400375220,1767454240536,-158.64764901,0.00035759,2]
[400375221,1767454240547,-223.99329169,0.00035859,14]
[400375222,1767454240557,-39860.03719311,0.00035862,2]
[400375223,1767454240568,-233.9,0.00035878,30]
[400375224,1767454240578,-278.93,0.00035989,14]
[400375226,1767454240588,-1403.0,0.00036001,2]
[400375227,1767454240598,-1328.0,0.00036001,2]
[400375228,1767454240609,-2433.0,0.00036001,2]
[400375229,1767454240619,-166.66,0.00036154,30]
[400375230,1767454240629,-278.95,0.00036263,14]
[400375231,1767454240640,-10463.15897303,0.00036436,2]
[400375232,1767454240650,-696.14409905,0.00036554,2]
[400375233,1767454240660,-1645.29677749,0.00036654,2]
[400375234,1767454240671,-1698.166892,0.00036779,2]
[400375235,1767454240682,-1000.0,0.00036846,2]
[400375236,1767454240693,-18062.2062,0.00036846,2]
[400375237,1767454240703,-8395.2766,0.00036846,2]
[400375238,1767454240713,-500.0,0.00036945,120]
[400375239,1767454240723,-500.0,0.00036945,120]
[400375240,1767454240733,-500.0,0.00036945,120]
[400375241,1767454240743,-500.0,0.00036945,120]
[400375242,1767454240753,-500.0,0.00036945,120]
[400375243,1767454240763,-500.0,0.00036945,120]
[400375244,1767454240773,-500.0,0.00036945,120]
[400375245,1767454240784,-500.0,0.00036945,120]
[400375246,1767454240793,-500.0,0.00036945,120]
[400375247,1767454240804,-500.0,0.00036945,120]
[400375248,1767454240819,-500.0,0.00036945,120]
[400375249,1767454240829,-500.0,0.00036945,120]
[400375250,1767454240839,-500.0,0.00036945,120]
[400375251,1767454240850,-578.68634759,0.00036945,120]
[400375252,1767454240860,-150.0,0.00037,120]
[400375253,1767454240871,-500.0,0.00037048,120]
[400375254,1767454240882,-1088.8218,0.000372,10]
[400375255,1767454240892,-10463.15897303,0.00037256,2]
[400375256,1767454240901,-500.0,0.00037296,120]
[400375257,1767454240912,-500.0,0.00037296,120]
[400375258,1767454240922,-500.0,0.00037299,30]
[400375259,1767454240940,-505.19604421,0.00037299,120]
[400375260,1767454240951,-500.0,0.00037299,120]
[400375261,1767454240962,-500.0,0.00037299,120]
[400375262,1767454240972,-500.0,0.00037396,30]
[400375263,1767454240982,-386.65632401,0.00037396,30]
[400375264,1767454240992,-500.0,0.00037396,120]
[400375265,1767454241002,-500.0,0.00037396,120]
[400375266,1767454241012,-516.81548124,0.00037396,120]
[400375267,1767454241022,-641.56801459,0.00037529,120]
[400375268,1767454241031,-1199.0,0.00037577,2]
[400375269,1767454241041,-2363.63,0.00037702,2]
[400375270,1767454241051,-696.14409903,0.00037843,2]
[400375271,1767454241061,-15000.0,0.00038,10]
[400375272,1767454241071,-10463.15897303,0.00038077,2]
[400375273,1767454241081,-1645.29677749,0.00038769,2]
[400375274,1767454241091,-300.0,0.00038869,2]
[400375275,1767454241100,-300.0,0.00038869,2]
[400375276,1767454241110,-10463.15897303,0.00038897,2]
[400375277,1767454241120,-696.14409903,0.00039132,2]
[400375278,1767454241130,-500.0,0.000393,5]
[400375279,1767454241140,-500.0,0.000393,5]
[400375280,1767454241149,-501.08291115,0.000393,5]
[400375281,1767454241159,-500.0,0.000393,5]
[400375282,1767454241168,-500.0,0.000393,5]
[400375283,1767454241178,-500.0,0.000393,5]
[400375284,1767454241192,-500.0,0.000393,5]
[400375285,1767454241202,-500.0,0.000393,5]
[400375286,1767454241212,-519.74194078,0.000393,5]
[400375287,1767454241222,-500.0,0.000393,3]
[400375288,1767454241232,-500.0,0.000393,5]
[400375289,1767454241242,-500.0,0.000393,5]
[400375290,1767454241252,-500.0,0.000393,2]
[400375291,1767454241262,-501.73549787,0.000393,5]
[400375292,1767454241272,-500.0,0.000393,5]
[400375293,1767454241282,-225.04435093,0.000393,5]
[400375294,1767454241292,-501.54454633,0.000393,5]
[400375295,1767454241302,-27941.07,0.00039471,2]
[400375296,1767454241312,-500.0,0.00039523,120]
[400375297,1767454241322,-239.17,0.00039654,2]
[400375298,1767454241332,-10463.15897303,0.00039718,2]
[400375299,1767454241342,-4265.0,0.00039729,5]
[400375300,1767454241354,-8362.20558409,0.000398,120]
[400375301,1767454241364,-802.24106746,0.00039848,5]
[400375302,1767454241375,-233.9,0.00040203,120]
[400375303,1767454241386,-696.14409903,0.00040422,2]
[400375304,1767454241401,-10463.15897303,0.00040538,15]
[400375305,1767454241412,-1645.29677749,0.00040885,15]
[400375306,1767454241423,-1352.6,0.00040986,30]
[400375307,1767454241434,-1000.0,0.00041011,120]
[400375308,1767454241444,-710.05,0.00041019,30]
[400375309,1767454241455,-999.0,0.00041095,120]
[400375310,1767454241465,-252.49170485,0.00041096,2]
[400375311,1767454241475,-10463.15897303,0.00041359,15]
[400375312,1767454241486,-500.0,0.00041399,120]
[400375313,1767454241496,-500.0,0.00041399,120]
[400375314,1767454241505,-500.0,0.00041399,120]
[400375315,1767454241515,-500.0,0.00041399,120]
[400375316,1767454241525,-500.0,0.00041399,120]
[400375317,1767454241535,-1352.6,0.00041433,30]
[400375318,1767454241544,-500.0,0.00041444,60]
[400375319,1767454241554,-500.0,0.00041444,60]
[400375320,1767454241568,-800.0,0.000415,15]
[400375321,1767454241578,-800.0,0.000415,15]
[400375322,1767454241588,-800.0,0.000415,15]
[400375323,1767454241598,-800.0,0.000415,15]
[400375324,1767454241607,-800.0,0.000415,15]
[400375325,1767454241617,-739.76920521,0.000415,15]
[400375326,1767454241628,-800.0,0.000415,15]
[400375327,1767454241638,-800.0,0.000415,15]
[400375328,1767454241648,-800.0,0.000415,15]
[400375329,1767454241660,-800.0,0.000415,15]
[400375330,1767454241670,-800.0,0.000415,15]
[400375331,1767454241680,-800.0,0.000415,15]
[400375332,1767454241690,-800.0,0.000415,15]
[400375333,1767454241700,-800.0,0.000415,15]
[400375334,1767454241712,-696.14409903,0.00041711,2]
[400375335,1767454241722,-594.20062524,0.00041779,7]
[400375336,1767454241732,-500.0,0.00041992,60]
[400375337,1767454241742,-10463.15897303,0.00042179,15]
[400375338,1767454241756,-999.0,0.00042191,120]
[400375339,1767454241767,-200.0,0.00042245,120]
[400375340,1767454241777,-151.47739108,0.00042434,39]
[400375341,1767454241787,-500.0,0.0004254,60]
[400375342,1767454241797,-500.0,0.0004254,60]
[400375343,1767454241807,-3289.67,0.00042546,120]
[400375344,1767454241817,-2056.04,0.00042546,30]
[400375345,1767454241827,-165.86,0.00042606,2]
[400375346,1767454241836,-500.77091378,0.00042673,10]
[400375347,1767454241847,-500.0,0.00042673,10]
[400375348,1767454241856,-500.0,0.00042673,10]
[400375349,1767454241867,-500.0,0.00042673,10]
[400375350,1767454241877,-500.0,0.00042673,10]
[400375351,1767454241887,-500.87607704,0.00042673,10]
[400375352,1767454241897,-500.0,0.00042673,10]
[400375353,1767454241906,-500.74205583,0.00042673,10]
[400375354,1767454241916,-500.0,0.00042673,10]
[400375355,1767454241925,-500.0,0.00042673,10]
[400375356,1767454241935,-500.0,0.00042673,10]
[400375357,1767454241948,-501.63261072,0.00042673,10]
[400375358,1767454241958,-500.0,0.00042673,10]
[400375359,1767454241968,-500.0,0.00042673,10]
[400375360,1767454241977,-500.0,0.00042673,10]
[400375361,1767454241987,-500.75892138,0.00042673,10]
[400375362,1767454241996,-500.73940315,0.00042673,10]
[400375363,1767454242006,-500.0,0.00042673,10]
[400375364,1767454242015,-500.0,0.00042673,10]
[400375365,1767454242026,-500.0,0.00042673,10]
[400375366,1767454242036,-500.0,0.00042673,10]
[400375367,1767454242046,-500.0,0.00042673,10]
[400375368,1767454242056,-150.0,0.00042673,10]
[400375369,1767454242066,-500.0,0.00042673,10]
[400375370,1767454242076,-501.06132707,0.00042673,10]
[400375371,1767454242087,-500.0,0.00042673,10]
[400375372,1767454242097,-501.18132852,0.00042673,10]
[400375373,1767454242107,-501.49112453,0.00042673,10]
[400375374,1767454242116,-500.0,0.00042673,10]
[400375375,1767454242126,-500.0,0.00042673,10]
[400375376,1767454242136,-404.37637733,0.0004285,120]
[400375377,1767454242147,-225.91490852,0.0004285,120]
[400375378,1767454242156,-600.0,0.0004285,120]
[400375379,1767454242167,-220.0,0.0004285,120]
[400375380,1767454242177,-154.17869301,0.0004286,40]
[400375381,1767454242187,-2000.0,0.00042873,3]
[400375382,1767454242197,-5800.0,0.00042927,14]
[400375383,1767454242207,-150.0,0.00042973,8]
[400375384,1767454242217,-10000.0,0.00043,2]
[400375385,1767454242227,-3033.7672,0.00043,120]
[400375386,1767454242238,-253.0,0.00043,41]
[400375387,1767454242248,-255555.0,0.00043,120]
[400375388,1767454242258,-10463.15897303,0.00043,15]
[400375389,1767454242268,-1999.0,0.00043,120]
[400375390,1767454242279,-1645.29677749,0.00043,15]
[400375391,1767454242289,-196.31661926,0.00043,2]
[400375392,1767454242299,-180.25946369,0.00043,8]
[400375393,1767454242309,-262.46401398,0.00043,2]
[400375394,1767454242319,-696.14409903,0.00043,2]
[400375395,1767454242329,-152.20405206,0.00043028,2]
[400375396,1767454242339,-262.46401397,0.00043038,2]
[400375397,1767454242348,-500.0,0.00043068,120]
[400375398,1767454242358,-298.92926137,0.00043068,120]
[400375399,1767454242369,-500.0,0.00043068,120]
[400375400,1767454242379,-500.0,0.00043068,120]
[400375401,1767454242390,-150.0,0.00043073,10]
[400375402,1767454242400,-204.4493587,0.00043076,30]
[400375403,1767454242416,-262.46401397,0.00043076,2]
[400375404,1767454242426,-1423.3809576,0.0004309,7]
[400375405,1767454242436,-1423.3809576,0.0004309,7]
[400375406,1767454242446,-150.0,0.00043096,30]
[400375407,1767454242459,-150.0,0.00043096,30]
[400375408,1767454242469,-150.4343184,0.00043096,30]
[400375409,1767454242479,-150.0,0.00043096,30]
[400375410,1767454242489,-184.36022036,0.00043096,30]
[400375411,1767454242499,-221.59454018,0.00043096,30]
[400375412,1767454242509,-150.0,0.00043096,30]
[400375413,1767454242519,-150.37867968,0.00043096,30]
[400375414,1767454242529,-150.0,0.00043096,30]
[400375415,1767454242539,-150.0,0.00043096,30]
[400375416,1767454242549,-150.0,0.00043096,30]
[400375417,1767454242559,-150.0,0.00043096,30]
[400375418,1767454242569,-150.0,0.00043096,30]
[400375419,1767454242579,-150.0,0.00043097,30]
[400375420,1767454242590,-435.94347868,0.00043098,120]
[400375421,1767454242600,-500.0,0.00043098,120]
[400375422,1767454242610,-514.26068371,0.00043098,120]
[400375423,1767454242620,-150.0,0.00043099,30]
[400375424,1767454242631,-1000.0,0.00043099,120]
[400375425,1767454242641,-427233.4504927,0.00043099,2]
[400375426,1767454242652,-5419.843195,0.00043099,2]
[400375427,1767454242662,-151.0,0.00043099,120]
[400375428,1767454242672,-216.648183,0.00043099,120]
[400375430,1767454242683,-216.648183,0.00043099,120]
[400375431,1767454242692,-216.648183,0.00043099,120]
[400375432,1767454242703,-216.648183,0.00043099,120]
[400375433,1767454242715,-500.0,0.00043099,120]
[400375434,1767454242725,-500.0,0.00043099,120]
[400375435,1767454242736,-523.66211368,0.00043099,120]
[400375436,1767454242746,-68947.50157378,0.000431,30]
[400375437,1767454242757,-150.0,0.000431,30]
[400375438,1767454242767,-150.0,0.000431,30]
[400375439,1767454242778,-304160.37288229,0.000431,120]
[400375440,1767454243054,-27182.13399568,0.000431,120]
[400375441,1767454243066,-2062.33993084,0.000431,120]
[400375442,1767454243437,-48777.42343859,0.000431,120]
[400375443,1767454243449,-2239.0678955,0.000431,120]
[400375444,1767454243463,-1871.18699596,0.000431,120]
[400375457,1767454244267,-506.0,0.00029877,2]
[400375458,1767454244278,-151.0,0.00042673,120]
[400375459,1767454244288,-151.0,0.00043,120]
[400375460,1767454244298,-260.910573,0.00043099,120]
[400375461,1767454244308,-38796.66393604,0.000431,120]
[400375462,1767454244969,-565.0,0.00036001,2]
[400375463,1767454244979,-6412.789385,0.000431,120]
[400375464,1767454245090,-1236615.49194972,0.000431,120]
[400375465,1767454245102,-1320117.01824132,0.000431,120]
[400375466,1767454245126,-773054.8001758,0.000431,120]
[400375467,1767454245153,-1579.86835235,0.000431,120]
[400375469,1767454245919,-1349.325,0.000431,120]
[400375470,1767454246096,-3830.40894624,0.000431,120]
[400375498,1767454673664,160.0,0.00029876,23]
[400375530,1767455144119,-151.0,0.00025637,2]
[400375531,1767455144141,-151.0,0.00025637,2]
[400375532,1767455144164,-151.0,0.00025821,2]
[400375533,1767455144186,-151.0,0.00025855,2]
[400375534,1767455144207,-151.0,0.00026072,2]
[400375535,1767455144228,-151.0,0.00026072,2]
[400375536,1767455144249,-107.39079059,0.00026475,2]
[400375545,1767455240095,-151.0,0.00025715,2]
[400375546,1767455240122,-151.0,0.00025978,2]
[400375547,1767455240149,-192.60920941,0.00026475,2]
[400375548,1767455240176,-218.12895722,0.00026845,2]
[400375549,1767455240204,-75.18452129,0.00026874,2]
[400375559,1767455350136,-151.0,0.0002603,2]
[400375560,1767455350159,-151.0,0.0002636,2]
[400375561,1767455350181,-151.0,0.00026562,2]
[400375562,1767455350203,-151.0,0.00026562,2]
[400375563,1767455350228,-151.0,0.00026593,2]
[400375564,1767455350250,-333.81547871,0.00026874,2]
[400375565,1767455350271,-250.0,0.00028287,2]
[400375566,1767455350292,-250.0,0.00028679,2]
[400375567,1767455350313,-250.0,0.00028779,2]
[400375568,1767455350333,-300.0,0.00029091,2]
[400375569,1767455350354,-513.0,0.00029877,2]
[400375570,1767455350374,-273.8759,0.00031718,2]
[400375571,1767455350394,-294.07339406,0.00032343,2]
[400375572,1767455350415,-689.4833,0.00033594,2]
[400375573,1767455350438,-400.0,0.00033842,2]
[400375574,1767455350458,-400.0,0.00033843,3]
[400375575,1767455350479,-926.0,0.00033843,3]
[400375576,1767455350500,-1200.0,0.00033843,3]
[400375577,1767455350520,-9999.99,0.00033844,2]
[400375578,1767455350542,-152.13369377,0.00034992,2]
[400375579,1767455350563,-150.0,0.000361,30]
[400375580,1767455350583,-513.0,0.00036142,9]
[400375581,1767455350605,-200.0,0.0003633,3]
[400375582,1767455350626,-560.0,0.0003633,2]
[400375583,1767455350647,-500.0,0.00036384,2]
[400375584,1767455359031,198.57,0.00030709,2]
[400375585,1767455359559,151.0,0.00030709,2]
[400375586,1767455364486,151.0,0.00030709,2]
[400375587,1767455377099,151.0,0.00030709,2]
[400375588,1767455381094,151.0,0.00030709,2]
[400375589,1767455394171,151.0,0.00030718,2]
[400375590,1767455411019,151.0,0.00030539,2]
[400375593,1767455419223,151.0,0.00030519,2]
[400375594,1767455427606,151.0,0.00030613,2]
[400375609,1767455432367,-489.81980729,0.000378,2]
[400375611,1767455432378,-250.0,0.00037864,120]
[400375613,1767455432388,-300.0,0.00037928,120]
[400375614,1767455432397,-500.0,0.00038056,30]
[400375615,1767455432407,-500.0,0.00038056,30]
[400375616,1767455432417,-186.31098279,0.00038278,120]
[400375617,1767455432425,-300.0,0.0003851,4]
[400375618,1767455432435,-3458.0,0.00038511,2]
[400375619,1767455432446,-1329.0,0.00038511,2]
[400375620,1767455432455,-1404.0,0.00038511,2]
[400375621,1767455432479,-1265.0,0.00038511,2]
[400375622,1767455432490,-433.0,0.00038511,2]
[400375623,1767455432501,-1200.0,0.00038511,2]
[400375625,1767455432511,-565.0,0.00038511,2]
[400375627,1767455432521,-1623.655,0.00038511,51]
[400375629,1767455432531,-300.0,0.00038826,2]
[400375631,1767455432541,-300.0,0.00038826,2]
[400375632,1767455432551,-300.0,0.00038826,2]
[400375633,1767455432561,-1000.0,0.00039056,2]
[400375634,1767455432573,-500.0,0.00039168,20]
[400375635,1767455432583,-500.0,0.00039199,2]
[400375636,1767455432593,-500.0,0.000393,5]
[400375637,1767455432604,-244.83,0.00039391,2]
[400375638,1767455432614,-1038.49,0.00039446,2]
[400375639,1767455432624,-150.0,0.0003948,2]
[400375640,1767455432635,-244.21404217,0.00041096,2]
[400375641,1767455432645,-170.49060821,0.00041096,59]
[400375642,1767455432655,-1277.6,0.00041451,30]
[400375643,1767455432664,-500.0,0.00041456,60]
[400375644,1767455432674,-500.0,0.00041456,60]
[400375645,1767455432683,-800.0,0.000415,15]
[400375646,1767455432693,-800.0,0.000415,15]
[400375647,1767455432703,-800.0,0.000415,15]
[400375648,1767455432712,-800.0,0.000415,15]
[400375649,1767455432722,-800.0,0.000415,15]
[400375650,1767455432732,-800.0,0.000415,15]
[400375651,1767455432742,-800.0,0.000415,15]
[400375652,1767455432753,-800.0,0.000415,15]
[400375653,1767455432763,-101.8744623,0.00041511,2]
[400375654,1767455432859,-549.2302624,0.00041511,2]
[400375655,1767455432871,-675.8952753,0.00041511,2]
[400375656,1767455432883,-918.5783688,0.00041511,2]
[400375657,1767455432895,-329.24117934,0.00041511,2]
[400375658,1767455432908,-154.18045186,0.00041511,2]
[400375659,1767455432920,-357.53201128,0.00041511,2]
[400375661,1767455439025,-580.53596721,0.00038511,2]
[400375662,1767455439042,-4416.6099759,0.00038511,2]
[400375663,1767455440994,-1547.85405689,0.00038511,2]
[400375664,1767455441006,-907.46798872,0.00041511,2]
[400375665,1767455441016,-431.0,0.00041511,2]
[400375666,1767455441026,-1951.7348094,0.00041511,2]
[400375683,1767455444229,151.0,0.00036297,2]
[400375684,1767455445097,-126.81656827,0.00041511,2]
[400375685,1767455445204,-112.59897685,0.00041511,2]
[400375690,1767455446321,-4353.84964548,0.00041511,2]
[400375691,1767455446331,-300.0,0.0004158,120]
[400375692,1767455446341,-250.0,0.0004158,120]
[400375693,1767455446351,-688.01,0.00041625,30]